[Event "18th Charleroi Open-A 2019"]
[Site "Charleroi"]
[Date "2019.08.02"]
[Round "8.12"]
[White "Roger, Mehdi"]
[Black "Van Malder, Dries"]
[Result "1/2-1/2"]
[ECO "B67"]
[WhiteElo "2125"]
[BlackElo "2178"]
[Annotator "ChessBase"]
[PlyCount "55"]
[EventDate "2019.07.22"]
[EventType "swiss"]
[EventCountry "BEL"]
[SourceTitle "playchess.com"]
[Source "ChessBase"]
[SourceQuality "1"]
[TimeControl "40/5400+30:1800+30"]

1. e4 {[%emt 0:00:00]} c5 {[%emt 0:00:00]} 2. Nf3 {[%emt 0:00:00]} Nc6 {[%emt 0:00:00]} 3. d4 {[%emt 0:00:14]} cxd4 {[%emt 0:00:00]} 4. Nxd4 {[%emt 0:00:06]} Nf6 {[%emt 0:00:04]} 5. Nc3 {[%emt 0:00:05]} d6 {[%emt 0:00:06]} 6. Bg5 {[%emt 0:00:20]} e6 {[%emt 0:00:14]} 7. Qd2 {[%emt 0:00:07]} a6 {[%emt 0:00:05]} 8. O-O-O {[%emt 0:00:34]} Bd7 {[%emt 0:00:05]} 9. f4 {[%emt 0:01:35]} b5 {[%emt 0:00:07]} 10. Bxf6 {[%emt 0:00:44]} gxf6 {[%emt 0:00:31]} 11. Kb1 {[%emt 0:03:18]} Qb6 {[%emt 0:00:10]} 12. Nxc6 {[%emt 0:01:40]} Bxc6 {[%emt 0:00:08]} 13. f5 {[%emt 0:00:30]} Qc5 {[%emt 0:04:45]} 14. Bd3 {[%emt 0:18:41]} O-O-O {[%emt 0:05:49]} 15. Rhf1 {[%emt 0:09:55]} Be7 {[%emt 0:05:52]} 16. Ne2 {[%emt 0:31:25]} Rdg8 {[%emt 0:19:36]} 17. g3 {[%emt 0:08:36]} h5 {[%emt 0:06:05]} 18. Nf4 {[%emt 0:00:25]} Qe5 {[%emt 0:04:01]} 19. Qa5 {[%emt 0:10:16]} Kb7 {[%emt 0:12:10]} 20. Qb4 {[%emt 0:06:14]} h4 {[%emt 0:03:11]} 21. fxe6 {[%emt 0:00:16]} fxe6 {[%emt 0:00:15]} 22. Qb3 {[%emt 0:05:59]} Bd7 23. Bc4 Bc6 24. Bd3 hxg3 25. hxg3 Rxg3 26. Qxe6 Bd8 27. Qf7+ Kb8 {[%emt 0:26:56]} 28. Nd5 1/2-1/2

[Event "18th Charleroi Open-A 2019"]
[Site "Charleroi"]
[Date "2019.08.02"]
[Round "8.13"]
[White "Ghyselen, Wouter"]
[Black "Manafov, Vugar"]
[Result "1/2-1/2"]
[ECO "E08"]
[WhiteElo "2078"]
[BlackElo "2175"]
[Annotator "NA"]
[PlyCount "65"]
[EventDate "2019.07.22"]
[EventType "swiss"]
[EventCountry "BEL"]
[SourceTitle "playchess.com"]
[Source "ChessBase"]
[SourceQuality "1"]
[TimeControl "40/5400+30:1800+30"]

1. d4 {[%emt 0:00:00]} Nf6 {[%emt 0:06:55]} 2. c4 {[%emt 0:00:00]} e6 {[%emt 0:00:06]} 3. g3 {[%emt 0:00:00]} Bb4+ {[%emt 0:00:06]} 4. Bd2 {[%emt 0:00:06]} a5 {[%emt 0:00:05]} 5. Bg2 {[%emt 0:00:40]} d5 {[%emt 0:00:10]} 6. Nf3 {[%emt 0:00:30]} Nbd7 {[%emt 0:00:24]} 7. O-O {[%emt 0:03:54]} c6 {[%emt 0:00:12]} 8. Qc2 {[%emt 0:08:39]} O-O {[%emt 0:01:20]} 9. Bf4 {[%emt 0:05:44]} Be7 {[%emt 0:01:37]} 10. Nbd2 {[%emt 0:07:09]} Nh5 {[%emt 0:01:44]} 11. Rfd1 {[%emt 0:04:46]} g5 {[%emt 0:03:59]} 12. Be3 {[%emt 0:00:35]} f5 {[%emt 0:01:03]} 13. Nb1 {[%emt 0:02:03]} g4 {[%emt 0:03:15]} 14. Ne1 {[%emt 0:02:32]} f4 {[%emt 0:07:17]} 15. Bc1 {[%emt 0:03:16]} Bd6 {[%emt 0:01:37]} 16. e4 {[%emt 0:02:52]} f3 {[%emt 0:12:27]} 17. Bf1 {[%emt 0:06:34]} dxc4 {[%emt 0:14:25]} 18. e5 {[%emt 0:10:15]} Bb8 {[%emt 0:08:35]} 19. Bxc4 {[%emt 0:05:37]} Nb6 {[%emt 0:00:36]} 20. Bf1 {[%emt 0:06:26]} Qe8 {[%emt 0:07:04]} 21. Bh6 {[%emt 0:04:29]} Ng7 {[%emt 0:00:10]} 22. Bd3 {[%emt 0:02:37]} Qh5 {[%emt 0:00:04]} 23. Qd2 {[%emt 0:04:42]} Rd8 {[%emt 0:02:02]} 24. Qg5 {[%emt 0:03:09]} Qxg5 {[%emt 0:01:12]} 25. Bxg5 {[%emt 0:00:02]} Rxd4 {[%emt 0:00:22]} 26. Be3 {[%emt 0:12:41]} Rb4 {[%emt 0:03:30]} 27. Nc2 {[%emt 0:02:17]} Rxb2 {[%emt 0:02:30]} 28. Bd4 {[%emt 0:00:35]} Na4 {[%emt 0:00:02]} 29. Nba3 {[%emt 0:01:04]} c5 {[%emt 0:21:41]} 30. Bxb2 {[%emt 0:01:46]} Nxb2 {[%emt 0:00:30]} 31. Rd2 Nxd3 32. Rxd3 {[%emt 0:01:00]} Bxe5 {[%emt 0:01:00]} 33. Rd8+ {[%emt 0:00:30]} 1/2-1/2

[Event "18th Charleroi Open-A 2019"]
[Site "Charleroi"]
[Date "2019.08.02"]
[Round "8.14"]
[White "Partoens, Remi"]
[Black "Lacroix, Bruno"]
[Result "0-1"]
[ECO "B07"]
[WhiteElo "1957"]
[BlackElo "2152"]
[Annotator "NA"]
[PlyCount "89"]
[EventDate "2019.07.22"]
[EventType "swiss"]
[EventCountry "BEL"]
[SourceTitle "playchess.com"]
[Source "ChessBase"]
[SourceQuality "1"]
[TimeControl "40/5400+30:1800+30"]

1. e4 {[%emt 0:00:00]} c5 {[%emt 0:00:00]} 2. c3 {[%emt 0:00:00]} d6 {[%emt 0:00:12]} 3. d4 {[%emt 0:00:00]} Nf6 {[%emt 0:00:05]} 4. Bd3 {[%emt 0:03:55]} g6 {[%emt 0:01:20]} 5. Nf3 {[%emt 0:01:39]} Bg7 {[%emt 0:01:48]} 6. O-O {[%emt 0:00:47]} O-O {[%emt 0:00:05]} 7. h3 {[%emt 0:01:10]} Nfd7 {[%emt 0:08:13]} 8. Be3 {[%emt 0:08:55]} Nc6 {[%emt 0:00:57]} 9. Qd2 {[%emt 0:04:23]} a6 {[%emt 0:02:21]} 10. Bh6 {[%emt 0:08:53]} b5 {[%emt 0:11:24]} 11. Na3 {[%emt 0:03:21]} Qc7 {[%emt 0:04:41]} 12. Rae1 {[%emt 0:02:59]} c4 {[%emt 0:03:15]} 13. Bb1 {[%emt 0:00:22]} e5 {[%emt 0:00:09]} 14. d5 {[%emt 0:03:11]} Ne7 {[%emt 0:01:06]} 15. Bxg7 {[%emt 0:00:31]} Kxg7 {[%emt 0:00:03]} 16. Nc2 {[%emt 0:00:32]} Ng8 {[%emt 0:10:17]} 17. Ne3 {[%emt 0:00:59]} Ngf6 {[%emt 0:01:12]} 18. Nh4 {[%emt 0:00:30]} Kh8 {[%emt 0:11:22]} 19. Ng4 {[%emt 0:11:55]} Nxg4 {[%emt 0:03:36]} 20. hxg4 {[%emt 0:00:19]} Nf6 {[%emt 0:00:20]} 21. f3 {[%emt 0:00:22]} Qe7 {[%emt 0:00:32]} 22. g3 {[%emt 0:00:19]} Kg7 {[%emt 0:03:28]} 23. Re2 {[%emt 0:04:07]} h6 {[%emt 0:35:04]} 24. Rh2 {[%emt 0:00:40]} Rh8 {[%emt 0:00:00]} 25. Kg2 {[%emt 0:13:25]} Bd7 {[%emt 0:00:00]} 26. Rfh1 {[%emt 0:00:47]} Rab8 {[%emt 0:00:00]} 27. g5 {[%emt 0:08:38]} hxg5 {[%emt 0:00:00]} 28. Qxg5 {[%emt 0:00:07]} Nxd5 {[%emt 0:00:00]} 29. Qd2 {[%emt 0:00:46]} Nc7 {[%emt 0:00:00]} 30. Rd1 {[%emt 0:05:27]} Be6 {[%emt 0:00:00]} 31. Qxd6 {[%emt 0:04:30]} Qxd6 {[%emt 0:00:00]} 32. Rxd6 {[%emt 0:00:03]} Rbd8 {[%emt 0:00:00]} 33. Rxd8 {[%emt 0:00:38]} Rxd8 {[%emt 0:00:00]} 34. g4 {[%emt 0:01:54]} a5 {[%emt 0:00:00]} 35. Kg3 {[%emt 0:00:30]} f6 {[%emt 0:00:00]} 36. a3 {[%emt 0:02:00]} Na6 {[%emt 0:00:00]} 37. f4 {[%emt 0:02:10]} exf4+ {[%emt 0:00:04]} 38. Kf3 {[%emt 0:00:14]} g5 {[%emt 0:00:48]} 39. Nf5+ {[%emt 0:00:45]} Bxf5 {[%emt 0:00:06]} 40. gxf5 {[%emt 0:00:22]} Nc5 {[%emt 0:01:36]} 41. e5 {[%emt 0:30:15]} fxe5 {[%emt 0:33:35]} 42. Kg4 {[%emt 0:02:27]} Rd1 {[%emt 0:00:32]} 43. Bc2 {[%emt 0:00:05]} Rg1+ {[%emt 0:00:12]} 44. Kh5 {[%emt 0:02:09]} e4 {[%emt 0:01:17]} 45. Re2 {[%emt 0:01:18]} 0-1

[Event "18th Charleroi Open-A 2019"]
[Site "Charleroi"]
[Date "2019.08.02"]
[Round "8.17"]
[White "Boucquet, Emile"]
[Black "Roos, David"]
[Result "0-1"]
[ECO "B01"]
[WhiteElo "2064"]
[BlackElo "2114"]
[Annotator "NA"]
[PlyCount "67"]
[EventDate "2019.07.22"]
[EventType "swiss"]
[EventCountry "BEL"]
[SourceTitle "playchess.com"]
[Source "ChessBase"]
[SourceQuality "1"]
[TimeControl "40/5400+30:1800+30"]

1. e4 {[%emt 0:07:58]} d5 {[%emt 0:00:00]} 2. exd5 {[%emt 0:00:04]} Qxd5 {[%emt 0:00:00]} 3. Nc3 {[%emt 0:00:03]} Qa5 {[%emt 0:00:00]} 4. d4 {[%emt 0:00:04]} c6 {[%emt 0:00:00]} 5. Bd2 {[%emt 0:00:32]} Nf6 {[%emt 0:00:09]} 6. h3 {[%emt 0:03:32]} Bf5 {[%emt 0:03:40]} 7. g4 {[%emt 0:00:28]} Bg6 {[%emt 0:00:28]} 8. Bg2 {[%emt 0:05:27]} e6 {[%emt 0:04:43]} 9. f4 {[%emt 0:14:49]} Bb4 {[%emt 0:05:36]} 10. Nge2 {[%emt 0:07:43]} Nbd7 {[%emt 0:03:31]} 11. O-O {[%emt 0:00:46]} h6 {[%emt 0:05:20]} 12. Ng3 {[%emt 0:13:13]} O-O {[%emt 0:16:02]} 13. f5 {[%emt 0:04:12]} exf5 {[%emt 0:00:20]} 14. Nxf5 {[%emt 0:00:19]} Rfe8 {[%emt 0:00:32]} 15. a3 {[%emt 0:00:54]} Bf8 {[%emt 0:00:24]} 16. Kh1 {[%emt 0:08:22]} Qb6 {[%emt 0:05:01]} 17. Be1 {[%emt 0:11:00]} Rad8 {[%emt 0:06:01]} 18. Rb1 {[%emt 0:03:02]} Bxf5 {[%emt 0:04:05]} 19. Rxf5 {[%emt 0:00:18]} g6 {[%emt 0:00:11]} 20. Rf1 {[%emt 0:00:39]} Bg7 {[%emt 0:00:16]} 21. Bf2 {[%emt 0:02:40]} Qa5 {[%emt 0:01:20]} 22. Qc1 {[%emt 0:05:51]} Nf8 {[%emt 0:05:23]} 23. b4 {[%emt 0:01:08]} Qc7 {[%emt 0:00:39]} 24. b5 {[%emt 0:00:38]} Ne6 {[%emt 0:00:52]} 25. bxc6 {[%emt 0:00:26]} bxc6 {[%emt 0:00:06]} 26. Rb4 {[%emt 0:03:22]} Qd7 {[%emt 0:07:15]} 27. Qb2 {[%emt 0:00:59]} Rc8 {[%emt 0:01:34]} 28. Rb7 {[%emt 0:01:04]} Rc7 {[%emt 0:00:19]} 29. Rb1 {[%emt 0:00:26]} Nd8 {[%emt 0:16:14]} 30. Rxc7 {[%emt 0:00:37]} Qxc7 {[%emt 0:00:05]} 31. Qb8 {[%emt 0:00:48]} Qa5 {[%emt 0:01:12]} 32. Qb4 {[%emt 0:00:31]} Qc7 {[%emt 0:00:37]} 33. Bg1 {[%emt 0:01:01]} Bf8 {[%emt 0:00:49]} 34. Qa4 {[%emt 0:00:26]} 0-1

[Event "18th Charleroi Open-A 2019"]
[Site "Charleroi"]
[Date "2019.08.02"]
[Round "8.19"]
[White "Moreels, Yves"]
[Black "Vanden Bussche, Steven"]
[Result "1-0"]
[ECO "C60"]
[WhiteElo "2079"]
[BlackElo "2061"]
[Annotator "NA"]
[PlyCount "58"]
[EventDate "2019.07.22"]
[EventType "swiss"]
[EventCountry "BEL"]
[SourceTitle "playchess.com"]
[Source "ChessBase"]
[SourceQuality "1"]
[TimeControl "40/5400+30:1800+30"]

1. e4 {[%emt 0:00:00]} e5 {[%emt 0:00:56]} 2. Nf3 {[%emt 0:00:00]} Nc6 {[%emt 0:00:04]} 3. Bb5 {[%emt 0:00:00]} Nge7 {[%emt 0:01:52]} 4. O-O {[%emt 0:01:24]} a6 {[%emt 0:00:12]} 5. Ba4 {[%emt 0:00:13]} g6 {[%emt 0:00:18]} 6. c3 {[%emt 0:02:46]} b5 {[%emt 0:01:01]} 7. Bb3 {[%emt 0:02:01]} Bg7 {[%emt 0:00:45]} 8. d4 {[%emt 0:00:53]} exd4 {[%emt 0:00:32]} 9. cxd4 {[%emt 0:01:27]} d6 {[%emt 0:05:02]} 10. h3 {[%emt 0:02:28]} O-O {[%emt 0:00:42]} 11. a4 {[%emt 0:05:05]} Bb7 {[%emt 0:04:05]} 12. axb5 {[%emt 0:04:25]} axb5 {[%emt 0:00:10]} 13. Rxa8 {[%emt 0:00:10]} Bxa8 {[%emt 0:02:24]} 14. d5 {[%emt 0:09:34]} Na5 {[%emt 0:03:21]} 15. Bc2 {[%emt 0:02:21]} c6 {[%emt 0:12:24]} 16. dxc6 {[%emt 0:03:12]} Bxc6 {[%emt 0:01:25]} 17. Nc3 {[%emt 0:07:41]} Nc4 {[%emt 0:13:15]} 18. Nd4 {[%emt 0:07:59]} b4 {[%emt 0:02:32]} 19. Nxc6 {[%emt 0:00:42]} Nxc6 {[%emt 0:00:06]} 20. Na4 {[%emt 0:03:18]} Bd4 {[%emt 0:15:02]} 21. b3 {[%emt 0:04:44]} N4a5 {[%emt 0:08:09]} 22. Bb2 {[%emt 0:03:13]} Bxb2 {[%emt 0:08:25]} 23. Nxb2 {[%emt 0:00:10]} Qf6 {[%emt 0:00:15]} 24. Qa1 {[%emt 0:05:27]} Qc3 {[%emt 0:05:08]} 25. Rc1 {[%emt 0:07:33]} Nd4 {[%emt 0:01:06]} 26. Bd3 {[%emt 0:01:45]} Ndxb3 {[%emt 0:08:47]} 27. Rxc3 {[%emt 0:00:21]} Nxa1 {[%emt 0:00:11]} 28. Rc7 {[%emt 0:03:48]} Rb8 {[%emt 0:01:39]} 29. Ra7 {[%emt 0:02:31]} N1b3 {[%emt 0:00:02]} 1-0

[Event "18th Charleroi Open-A 2019"]
[Site "Charleroi"]
[Date "2019.08.02"]
[Round "8.20"]
[White "Hafner, Christian"]
[Black "Damlakhi, Mahmoud"]
[Result "1-0"]
[ECO "A14"]
[WhiteElo "2071"]
[BlackElo "2008"]
[Annotator "NA"]
[PlyCount "40"]
[EventDate "2019.07.22"]
[EventType "swiss"]
[EventCountry "BEL"]
[SourceTitle "playchess.com"]
[Source "ChessBase"]
[SourceQuality "1"]
[TimeControl "40/5400+30:1800+30"]

1. c4 {[%emt 0:00:00]} c6 {[%emt 1:30:30]} 2. Nf3 {[%emt 1:31:00]} d5 {[%emt 0:00:00]} 3. g3 {[%emt 0:00:00]} Nf6 {[%emt 0:01:00]} 4. Bg2 {[%emt 0:01:00]} e6 {[%emt 0:00:30]} 5. b3 {[%emt 0:00:30]} Be7 {[%emt 0:00:30]} 6. O-O {[%emt 0:00:30]} O-O {[%emt 0:00:30]} 7. Bb2 {[%emt 0:00:30]} Nbd7 {[%emt 0:00:30]} 8. d3 {[%emt 0:00:30]} b6 {[%emt 0:00:30]} 9. Nbd2 {[%emt 0:00:30]} Bb7 {[%emt 0:00:30]} 10. Rc1 {[%emt 0:00:30]} c5 {[%emt 0:00:30]} 11. cxd5 {[%emt 0:00:30]} exd5 {[%emt 0:00:30]} 12. Nh4 {[%emt 0:00:30]} Re8 {[%emt 0:00:30]} 13. h3 {[%emt 0:00:30]} Bf8 {[%emt 0:00:30]} 14. Re1 {[%emt 0:00:30]} Rc8 {[%emt 0:00:30]} 15. e4 {[%emt 0:00:30]} dxe4 {[%emt 0:00:30]} 16. dxe4 {[%emt 0:00:00]} Ne5 {[%emt 0:00:00]} 17. Bxe5 Rxe5 18. Qc2 {[%emt 0:00:00]} Qc7 19. Re3 {[%emt 0:00:00]} Ree8 20. Rce1 {[%emt 0:00:00]} g6 {[%emt 0:00:00]} 1-0

[Event "18th Charleroi Open-A 2019"]
[Site "Charleroi"]
[Date "2019.08.02"]
[Round "8.22"]
[White "Uhoda, Philippe"]
[Black "Roels, Frederik"]
[Result "1/2-1/2"]
[ECO "B08"]
[WhiteElo "2062"]
[BlackElo "1944"]
[Annotator "NA"]
[PlyCount "42"]
[EventDate "2019.07.22"]
[EventType "swiss"]
[EventCountry "BEL"]
[SourceTitle "playchess.com"]
[Source "ChessBase"]
[SourceQuality "1"]
[TimeControl "40/5400+30:1800+30"]

1. d4 {[%emt 1:30:30]} Nf6 {[%emt 0:01:02]} 2. Nf3 {[%emt 0:00:30]} g6 {[%emt 0:03:00]} 3. Nc3 {[%emt 0:00:30]} Bg7 {[%emt 1:27:28]} 4. e4 {[%emt 0:00:30]} d6 {[%emt 0:00:00]} 5. Be3 {[%emt 0:00:30]} O-O {[%emt 0:01:00]} 6. h3 {[%emt 0:00:30]} Nbd7 {[%emt 0:00:30]} 7. Qd2 {[%emt 0:00:30]} c5 {[%emt 0:00:30]} 8. dxc5 {[%emt 0:00:30]} Nxc5 {[%emt 0:00:30]} 9. Bxc5 {[%emt 0:00:30]} dxc5 {[%emt 0:00:00]} 10. Qxd8 {[%emt 0:00:30]} Rxd8 {[%emt 0:01:00]} 11. Bc4 {[%emt 0:00:00]} e6 {[%emt 0:00:30]} 12. O-O {[%emt 0:01:00]} Bd7 {[%emt 0:00:30]} 13. e5 {[%emt 0:00:30]} Ne8 {[%emt 0:00:30]} 14. Bd3 {[%emt 0:00:30]} Bc6 {[%emt 0:00:00]} 15. Be4 {[%emt 0:00:30]} Bxe4 {[%emt 0:00:00]} 16. Nxe4 {[%emt 0:00:00]} b6 {[%emt 0:00:00]} 17. Rfd1 {[%emt 0:01:00]} f6 {[%emt 0:02:00]} 18. exf6 {[%emt 0:00:00]} Nxf6 {[%emt 0:00:30]} 19. Nxf6+ {[%emt 0:00:00]} Bxf6 {[%emt 0:00:00]} 20. c3 {[%emt 0:00:00]} Kf7 {[%emt 0:01:00]} 21. Kf1 {[%emt 0:02:00]} Ke7 {[%emt 0:00:30]} 1/2-1/2

[Event "18th Charleroi Open-A 2019"]
[Site "Charleroi"]
[Date "2019.08.02"]
[Round "8.23"]
[White "De Weird, Matthias"]
[Black "Van Dijck, Bjarne"]
[Result "1/2-1/2"]
[ECO "D95"]
[WhiteElo "2009"]
[BlackElo "2053"]
[Annotator "NA"]
[PlyCount "57"]
[EventDate "2019.07.22"]
[EventType "swiss"]
[EventCountry "BEL"]
[SourceTitle "playchess.com"]
[Source "ChessBase"]
[SourceQuality "1"]
[TimeControl "40/5400+30:1800+30"]

1. d4 {[%emt 0:00:00]} Nf6 {[%emt 0:03:55]} 2. c4 {[%emt 0:00:54]} g6 {[%emt 0:00:13]} 3. Nc3 {[%emt 0:01:08]} d5 {[%emt 0:00:08]} 4. e3 {[%emt 0:00:32]} Bg7 {[%emt 0:00:16]} 5. Qb3 {[%emt 0:00:23]} c6 {[%emt 0:00:54]} 6. Nf3 {[%emt 0:00:19]} O-O {[%emt 0:00:32]} 7. Bd2 {[%emt 0:00:22]} a6 {[%emt 0:02:14]} 8. Rc1 {[%emt 0:01:49]} dxc4 {[%emt 0:02:54]} 9. Bxc4 {[%emt 0:00:19]} b5 {[%emt 0:00:46]} 10. Be2 {[%emt 0:01:08]} Bb7 {[%emt 0:01:43]} 11. O-O {[%emt 0:05:12]} Nbd7 {[%emt 0:05:38]} 12. a4 {[%emt 0:07:16]} Qb6 {[%emt 0:01:20]} 13. Rc2 {[%emt 0:22:17]} Rac8 {[%emt 0:11:31]} 14. Rfc1 {[%emt 0:06:50]} Rfe8 {[%emt 0:07:58]} 15. h3 {[%emt 0:05:50]} h6 {[%emt 0:01:50]} 16. Bd3 {[%emt 0:08:35]} e6 {[%emt 0:00:33]} 17. e4 {[%emt 0:06:07]} c5 {[%emt 0:04:14]} 18. axb5 {[%emt 0:01:10]} c4 {[%emt 0:05:40]} 19. Bxc4 {[%emt 0:00:34]} Nxe4 {[%emt 0:00:14]} 20. bxa6 {[%emt 0:01:48]} Nxd2 {[%emt 0:03:44]} 21. Nxd2 {[%emt 0:02:46]} Qxb3 {[%emt 0:02:05]} 22. Nxb3 {[%emt 0:07:57]} Rxc4 {[%emt 0:04:28]} 23. axb7 {[%emt 0:00:08]} Rb4 {[%emt 0:00:06]} 24. Nc5 {[%emt 0:01:35]} Rxd4 {[%emt 0:13:26]} 25. Nxd7 {[%emt 0:00:11]} Rxd7 {[%emt 0:00:05]} 26. Ne4 {[%emt 0:00:55]} Be5 {[%emt 0:02:15]} 27. Rc8 {[%emt 0:02:17]} Kf8 {[%emt 0:00:50]} 28. Rxe8+ {[%emt 0:00:09]} Kxe8 {[%emt 0:00:03]} 29. Nf6+ {[%emt 0:00:16]} 1/2-1/2

[Event "18th Charleroi Open-A 2019"]
[Site "Charleroi"]
[Date "2019.08.02"]
[Round "8.24"]
[White "Butzen, Robin"]
[Black "Fischer, Julie"]
[Result "0-1"]
[ECO "C56"]
[WhiteElo "1967"]
[BlackElo "2050"]
[Annotator "NA"]
[PlyCount "114"]
[EventDate "2019.07.22"]
[EventType "swiss"]
[EventCountry "BEL"]
[SourceTitle "playchess.com"]
[Source "ChessBase"]
[SourceQuality "1"]
[TimeControl "40/5400+30:1800+30"]

1. e4 {[%emt 0:01:58]} e5 {[%emt 0:00:00]} 2. Bc4 {[%emt 0:00:08]} Nf6 {[%emt 0:00:00]} 3. d4 {[%emt 0:00:08]} exd4 {[%emt 0:00:00]} 4. Nf3 {[%emt 0:00:15]} Nc6 {[%emt 0:00:00]} 5. O-O {[%emt 0:00:18]} Nxe4 {[%emt 0:00:00]} 6. Re1 {[%emt 0:00:07]} d5 {[%emt 0:00:00]} 7. Nxd4 {[%emt 0:00:29]} Be7 {[%emt 0:17:55]} 8. Bb5 {[%emt 0:03:09]} Bd7 {[%emt 0:02:44]} 9. f3 {[%emt 0:01:59]} Nxd4 {[%emt 0:08:45]} 10. Qxd4 {[%emt 0:05:04]} Bxb5 {[%emt 0:08:39]} 11. fxe4 {[%emt 0:00:30]} O-O {[%emt 0:10:23]} 12. Nc3 {[%emt 0:00:52]} Ba6 {[%emt 0:01:57]} 13. Nxd5 {[%emt 0:00:34]} c6 {[%emt 0:00:29]} 14. Nxe7+ {[%emt 0:01:18]} Qxe7 {[%emt 0:00:02]} 15. b3 {[%emt 0:00:43]} Rfd8 {[%emt 0:01:05]} 16. Qe3 {[%emt 0:00:43]} b6 {[%emt 0:11:49]} 17. Bb2 {[%emt 0:00:22]} c5 {[%emt 0:01:33]} 18. Qg3 {[%emt 0:01:08]} Qf8 {[%emt 0:01:00]} 19. Rad1 {[%emt 0:00:51]} Bb7 {[%emt 0:03:54]} 20. Rxd8 {[%emt 0:01:18]} Rxd8 {[%emt 0:00:01]} 21. Qc7 {[%emt 0:00:46]} Ba8 {[%emt 0:06:42]} 22. Bc3 {[%emt 0:07:52]} Qd6 {[%emt 0:04:38]} 23. Qxa7 {[%emt 0:01:21]} Qg6 {[%emt 0:00:24]} 24. Qe7 {[%emt 0:00:38]} Rf8 {[%emt 0:01:17]} 25. g3 {[%emt 0:07:09]} Qc6 {[%emt 0:02:04]} 26. Rd1 {[%emt 0:07:16]} Qxe4 {[%emt 0:01:01]} 27. Qxe4 {[%emt 0:00:16]} Bxe4 {[%emt 0:00:02]} 28. Rd6 {[%emt 0:00:29]} b5 {[%emt 0:01:39]} 29. Rb6 {[%emt 0:00:09]} b4 {[%emt 0:00:12]} 30. Be5 {[%emt 0:00:04]} Bxc2 {[%emt 0:02:37]} 31. Bd6 {[%emt 0:00:32]} Rc8 {[%emt 0:00:45]} 32. Bxc5 {[%emt 0:00:10]} Bb1 {[%emt 0:00:39]} 33. Ra6 {[%emt 0:00:30]} h6 {[%emt 0:00:57]} 34. Bxb4 {[%emt 0:00:34]} Rc1+ {[%emt 0:00:06]} 35. Kf2 {[%emt 0:00:06]} Rc2+ {[%emt 0:00:06]} 36. Ke3 {[%emt 0:00:05]} Rxa2 {[%emt 0:00:25]} 37. Rb6 {[%emt 0:00:13]} Rxh2 {[%emt 0:02:21]} 38. Bd6 {[%emt 0:00:37]} f5 {[%emt 0:10:32]} 39. Be5 {[%emt 0:00:27]} Be4 {[%emt 0:00:31]} 40. Rg6 {[%emt 0:00:43]} Kf7 {[%emt 0:00:50]} 41. Rxg7+ {[%emt 0:30:11]} Ke6 {[%emt 0:30:02]} 42. Bf4 {[%emt 0:03:20]} Rb2 {[%emt 0:01:59]} 43. Kd4 {[%emt 0:00:53]} Rxb3 {[%emt 0:00:23]} 44. Rg6+ {[%emt 0:05:17]} Kf7 {[%emt 0:00:14]} 45. Rxh6 {[%emt 0:00:06]} Rd3+ {[%emt 0:00:03]} 46. Kc4 {[%emt 0:00:34]} Rd7 {[%emt 0:00:36]} 47. Be5 {[%emt 0:01:37]} Rd1 {[%emt 0:00:58]} 48. Rh7+ {[%emt 0:01:06]} Ke6 {[%emt 0:00:29]} 49. Bf4 {[%emt 0:00:12]} Bd5+ {[%emt 0:01:05]} 50. Kc5 {[%emt 0:00:13]} Be4 {[%emt 0:00:11]} 51. Bg5 {[%emt 0:00:51]} Rd5+ {[%emt 0:00:00]} 52. Kc4 {[%emt 0:00:00]} Kd6 {[%emt 0:00:00]} 53. Rh6+ {[%emt 0:00:00]} Kd7 {[%emt 0:00:00]} 54. Rh7+ {[%emt 0:00:00]} Kc6 {[%emt 0:00:00]} 55. Re7 {[%emt 0:00:00]} Rc5+ {[%emt 0:00:00]} 56. Kd4 {[%emt 0:00:00]} Rd5+ {[%emt 0:00:00]} 57. Kc4 {[%emt 0:00:00]} Rc5+ {[%emt 0:00:00]} 0-1

[Event "18th Charleroi Open-A 2019"]
[Site "Charleroi"]
[Date "2019.08.02"]
[Round "8.26"]
[White "De Block, Fabio"]
[Black "Guion, Geoffrey"]
[Result "1-0"]
[ECO "E97"]
[WhiteElo "2039"]
[BlackElo "2006"]
[Annotator "NA"]
[PlyCount "98"]
[EventDate "2019.07.22"]
[EventType "swiss"]
[EventCountry "BEL"]
[SourceTitle "playchess.com"]
[Source "ChessBase"]
[SourceQuality "1"]
[TimeControl "40/5400+30:1800+30"]

1. Nf3 {[%emt 0:00:00]} Nf6 {[%emt 0:00:00]} 2. d4 {[%emt 0:00:00]} d6 {[%emt 0:00:21]} 3. c4 {[%emt 0:00:00]} g6 {[%emt 0:00:11]} 4. Nc3 {[%emt 0:00:00]} Bg7 {[%emt 0:00:05]} 5. e4 {[%emt 0:00:00]} O-O {[%emt 0:00:13]} 6. Be2 {[%emt 0:00:04]} e5 {[%emt 0:00:24]} 7. O-O {[%emt 0:00:15]} Nc6 {[%emt 0:00:18]} 8. d5 {[%emt 0:00:05]} Ne7 {[%emt 0:00:04]} 9. b4 {[%emt 0:00:04]} Nh5 {[%emt 0:02:54]} 10. g3 {[%emt 0:00:09]} f5 {[%emt 0:00:43]} 11. Ng5 {[%emt 0:00:15]} Nf6 {[%emt 0:00:38]} 12. f3 {[%emt 0:00:07]} c6 {[%emt 0:01:36]} 13. Qb3 {[%emt 0:02:41]} h6 {[%emt 0:06:07]} 14. Ne6 {[%emt 0:01:25]} Bxe6 {[%emt 0:05:27]} 15. dxe6 {[%emt 0:00:29]} d5 {[%emt 0:10:44]} 16. cxd5 {[%emt 0:04:56]} cxd5 {[%emt 0:00:21]} 17. exd5 {[%emt 0:03:43]} Nfxd5 {[%emt 0:00:33]} 18. Nxd5 {[%emt 0:00:41]} Qxd5 {[%emt 0:00:19]} 19. Bc4 {[%emt 0:00:17]} Qc6 {[%emt 0:02:05]} 20. b5 {[%emt 0:00:44]} Qc7 {[%emt 0:06:26]} 21. Be3 {[%emt 0:09:00]} f4 {[%emt 0:05:17]} 22. b6 {[%emt 0:03:06]} Qc6 {[%emt 0:04:37]} 23. Bb5 {[%emt 0:02:28]} Qd5 {[%emt 0:02:56]} 24. Qxd5 {[%emt 0:01:13]} Nxd5 {[%emt 0:00:05]} 25. Bc5 {[%emt 0:00:10]} Rfc8 {[%emt 0:07:51]} 26. e7 {[%emt 0:01:15]} Nf6 {[%emt 0:02:42]} 27. Rac1 {[%emt 0:02:26]} a6 {[%emt 0:05:03]} 28. Ba4 {[%emt 0:01:58]} Kf7 {[%emt 0:03:41]} 29. gxf4 {[%emt 0:05:51]} exf4 {[%emt 0:00:13]} 30. Rfe1 {[%emt 0:00:15]} Ne8 {[%emt 0:00:45]} 31. Bb3+ {[%emt 0:00:35]} Kf6 {[%emt 0:00:53]} 32. h4 {[%emt 0:04:01]} g5 {[%emt 0:01:53]} 33. h5 {[%emt 0:02:19]} g4 {[%emt 0:00:12]} 34. fxg4 {[%emt 0:01:32]} Kg5 {[%emt 0:00:26]} 35. Be6 {[%emt 0:00:32]} Rc6 {[%emt 0:01:54]} 36. Bd5 {[%emt 0:00:17]} Rxc5 {[%emt 0:00:12]} 37. Rcd1 {[%emt 0:03:07]} Bf6 {[%emt 0:03:36]} 38. Bf7 {[%emt 0:03:10]} Kxg4 {[%emt 0:01:46]} 39. Re6 {[%emt 0:02:27]} Kg3 {[%emt 0:04:17]} 40. Bxe8 {[%emt 0:05:04]} Rxe8 {[%emt 0:00:30]} 41. Rxf6 {[%emt 0:30:07]} Rxe7 {[%emt 0:31:13]} 42. Rxh6 {[%emt 0:00:06]} Ree5 {[%emt 0:03:55]} 43. Rh7 {[%emt 0:01:49]} Rxh5 {[%emt 0:01:59]} 44. Rxb7 {[%emt 0:00:15]} Rcg5 {[%emt 0:00:25]} 45. Rd3+ {[%emt 0:01:32]} f3 {[%emt 0:00:36]} 46. Rf7 {[%emt 0:00:23]} Kh3+ {[%emt 0:07:06]} 47. Kf1 {[%emt 0:01:22]} Kg4 {[%emt 0:02:30]} 48. Rdxf3 {[%emt 0:02:33]} Rb5 {[%emt 0:00:45]} 49. b7 {[%emt 0:12:02]} Rxb7 {[%emt 0:01:24]} 1-0